bitfinex/quotes_SOLUSD_20250616
["timestamp","ask_amount","ask_price","bid_price","bid_amount"]
[1750097653204,12.35056292,157.51,157.46,33.62239863]
[1750097653396,4.72816429,157.51,157.47,7.62239863]
[1750097654000,4.72816429,157.51,157.47,13.9726218]
[1750097654921,12.63488606,157.52,157.47,13.9726218]
[1750097655616,18.98333302,157.52,157.47,13.9726218]
[1750097655921,7.62239863,157.49,157.43,41.70007368]
[1750097656214,7.62239863,157.48,157.44,6.35162601]
[1750097656391,7.62239863,157.48,157.44,13.97402464]
[1750097657013,12.35056292,157.49,157.45,7.62239863]
[1750097657395,12.35056292,157.49,157.45,13.97339893]
[1750097657788,12.35056292,157.49,157.45,6.3510003]
[1750097659515,4.72816429,157.49,157.45,6.3510003]
[1750097659697,4.72816429,157.49,157.46,7.62239863]
[1750097659903,12.35056292,157.5,157.46,7.62239863]
[1750097660221,12.35056292,157.51,157.47,7.62239863]
[1750097660407,4.72816429,157.51,157.48,7.62239863]
[1750097661103,4.72766712,157.51,157.48,7.62239863]
[1750097661309,4.72766712,157.51,157.45,22.22905682]
[1750097661617,4.72766712,157.51,157.48,7.62239863]
[1750097662325,4.72766712,157.51,157.49,7.62239863]
[1750097662494,12.46231643,157.53,157.49,7.62239863]
[1750097662697,4.72742743,157.52,157.49,7.62239863]
[1750097662908,4.72742743,157.52,157.48,13.9722806]
[1750097663726,7.62239863,157.51,157.48,6.34988197]
[1750097664221,4.72742743,157.52,157.48,6.34988197]
[1750097664431,7.62239863,157.51,157.48,6.34988197]
[1750097670205,1.5284,157.53,157.48,7.62239863]
[1750097670523,7.62239863,157.52,157.47,13.97281458]
[1750097673814,7.62239863,157.52,157.47,6.35041595]
[1750097674008,1.5284,157.53,157.49,6.34960949]
[1750097674207,9.15079863,157.53,157.49,6.34960949]
[1750097674614,1.5284,157.53,157.49,13.97200812]
[1750097674794,17.821729,157.54,157.49,13.97200812]
[1750097674996,7.62239863,157.54,157.49,13.97200812]
[1750097675420,48.74061439,157.55,157.49,13.97200812]
[1750097675599,7.62239863,157.54,157.49,13.97200812]
[1750097677120,7.62239863,157.53,157.49,13.97200812]
[1750097677497,48.74061439,157.55,157.49,13.97200812]
[1750097677723,7.62239863,157.54,157.49,13.97200812]
[1750097679201,48.74061439,157.55,157.49,13.97200812]
[1750097679202,45.28712965,157.55,157.49,22.22363323]
[1750097679396,45.28712965,157.55,157.52,7.62239863]
[1750097680109,45.28712965,157.55,157.52,33.62239863]
[1750097680305,45.28712965,157.55,157.52,26.0]
[1750097680509,45.28712965,157.55,157.52,33.62239863]
[1750097680756,45.28712965,157.55,157.52,26.0]
[1750097681033,7.62239863,157.53,157.49,122.37200812]
[1750097682218,7.62239863,157.53,157.49,114.74960949]
[1750097683725,7.62239863,157.53,157.49,32.34960949]
[1750097684031,7.62239863,157.53,157.49,39.97200812]
[1750097687722,7.62239863,157.54,157.49,39.97200812]
[1750097688121,12.34762856,157.54,157.49,39.97200812]
[1750097688323,4.72522993,157.53,157.49,39.97200812]
[1750097688523,7.62239863,157.54,157.49,39.97200812]
[1750097688737,12.35739482,157.53,157.49,32.34960949]
[1750097689044,51.63435641,157.55,157.49,32.34960949]
[1750097689045,12.35755379,157.52,157.49,6.34960949]
[1750097689341,7.62239863,157.52,157.49,6.34960949]
[1750097689538,7.62239863,157.51,157.49,6.34960949]
[1750097690049,17.07892246,157.57,157.56,6.34678852]
[1750097690220,7.62239863,157.63,157.59,26.0]
[1750097690419,4.73310313,157.62,157.59,33.62239863]
[1750097690627,4.73310313,157.61,157.59,33.62239863]
[1750097690828,4.73274375,157.62,157.59,33.62239863]
[1750097691028,4.74172017,157.61,157.59,33.62239863]
[1750097691238,7.62239863,157.62,157.58,7.62239863]
[1750097691544,7.62239863,157.6,157.56,13.96918715]
[1750097691850,7.62239863,157.6,157.56,6.34678852]
[1750097691851,4.74191818,157.59,157.56,6.34678852]
[1750097692027,7.62239863,157.6,157.56,6.34678852]
[1750097692234,4.73394658,157.59,157.56,6.34678852]
[1750097692547,7.62239863,157.6,157.56,13.96918715]
[1750097692749,4.7339512,157.59,157.56,13.96918715]
[1750097692952,7.62239863,157.6,157.56,13.96918715]
[1750097693133,7.62239863,157.61,157.56,13.96918715]
[1750097693329,4.7337779,157.6,157.56,13.96918715]
[1750097693544,7.62239863,157.61,157.56,13.96918715]
[1750097693740,12.3562502,157.6,157.55,33.62239863]
[1750097693939,7.62239863,157.57,157.54,6.34749994]
[1750097695254,4.73390426,157.56,157.53,6.3479972]
[1750097695549,7.62239863,157.57,157.53,6.3479972]
[1750097695748,4.73390563,157.56,157.53,6.3479972]
[1750097695950,7.62239863,157.57,157.53,6.3479972]
[1750097696127,4.73388089,157.56,157.53,6.3479972]
[1750097696322,7.62239863,157.56,157.53,6.3479972]
[1750097697452,0.28432314,157.58,157.53,6.3479972]
[1750097697642,7.62239863,157.56,157.53,6.3479972]
[1750097699461,4.73371354,157.55,157.53,6.3479972]
[1750097699662,7.62239863,157.56,157.53,6.3479972]
[1750097699840,4.73371354,157.55,157.53,6.3479972]
[1750097700039,7.62239863,157.56,157.53,6.3479972]
[1750097700241,7.62239863,157.54,157.5,7.62239863]
[1750097700741,7.62239863,157.55,157.51,7.62239863]
[1750097701054,7.62239863,157.55,157.48,48.22504445]
[1750097701055,7.62239863,157.55,157.5,7.62239863]
[1750097701363,12.35682801,157.54,157.49,7.62239863]
[1750097701657,7.62239863,157.54,157.48,48.22504445]
[1750097702041,7.62239863,157.54,157.49,7.62239863]
[1750097702463,7.62239863,157.54,157.5,6.34920634]
[1750097702759,7.62239863,157.54,157.5,13.97160497]
[1750097703669,7.62239863,157.52,157.49,6.34945456]
[1750097704040,12.35994304,157.53,157.49,6.34945456]
[1750097704242,7.62239863,157.53,157.49,6.34945456]
[1750097705060,4.73771776,157.52,157.49,6.34945456]
[1750097705263,7.12239863,157.53,157.49,6.34945456]
[1750097705467,4.73856121,157.52,157.49,6.34945456]
[1750097705635,7.12239863,157.53,157.49,6.34945456]
[1750097705839,4.73856173,157.52,157.49,6.34945456]
[1750097706032,7.12239863,157.53,157.49,6.34945456]
[1750097706351,7.12239863,157.53,157.49,13.97185319]
[1750097706545,7.90672177,157.54,157.49,13.97185319]
[1750097706750,4.7393148,157.53,157.49,13.97185319]
[1750097706944,7.7645602,157.54,157.49,13.97185319]
[1750097707265,4.73910736,157.53,157.5,7.62239863]
[1750097707463,7.62239863,157.54,157.5,7.62239863]
[1750097707660,4.73909825,157.53,157.49,6.34945456]
[1750097707872,7.62239863,157.55,157.5,7.62239863]
[1750097708051,4.73909741,157.54,157.5,7.62239863]
[1750097708250,4.73909741,157.53,157.51,6.34880325]
[1750097708464,7.62239863,157.55,157.51,6.34880325]
[1750097708669,4.73904105,157.54,157.51,6.34880325]
[1750097708963,4.73904105,157.53,157.51,6.34880325]
[1750097709169,7.62239863,157.54,157.51,6.34880325]
[1750097709462,4.73912461,157.53,157.51,6.34880325]
[1750097709667,7.62239863,157.54,157.51,6.34880325]
[1750097710266,4.73995272,157.53,157.51,6.34880325]
[1750097710445,7.62239863,157.54,157.51,6.34880325]
[1750097710767,4.73932601,157.53,157.51,6.34880325]
[1750097710960,7.62239863,157.54,157.51,6.34880325]
[1750097711151,4.73913716,157.53,157.51,6.34880325]
[1750097711353,7.62239863,157.54,157.51,6.34880325]
[1750097711546,4.73870814,157.53,157.51,6.34880325]
[1750097711746,7.62239863,157.54,157.51,6.34880325]
[1750097711968,4.73876018,157.53,157.52,7.62239863]
[1750097712163,4.73923001,157.56,157.52,7.62239863]
[1750097712338,13.10239863,157.58,157.54,7.62239863]
[1750097712544,4.73930441,157.57,157.54,7.62239863]
[1750097712755,4.73930441,157.56,157.54,7.62239863]
[1750097712972,7.62239863,157.58,157.54,7.62239863]
[1750097713266,4.7397955,157.57,157.54,7.62239863]
[1750097713449,4.7397955,157.56,157.53,7.62239863]
[1750097713650,4.7397955,157.55,157.53,7.62239863]
[1750097713843,7.62239863,157.58,157.53,7.62239863]
[1750097714072,4.73923343,157.57,157.53,13.9700377]
[1750097714275,4.73923343,157.56,157.53,13.9700377]
[1750097714575,4.73923343,157.55,157.53,13.9700377]
[1750097714777,7.62239863,157.58,157.53,6.34763907]
[1750097714973,4.74098531,157.57,157.56,26.0]
[1750097715158,4.73946578,157.62,157.6,26.0]
[1750097715477,7.67534823,157.67,157.61,7.62239863]
[1750097715478,4.73209262,157.65,157.61,7.62239863]
[1750097715666,7.67534823,157.67,157.6,26.0]
[1750097715866,4.73217974,157.66,157.62,7.62239863]
[1750097716063,4.73217974,157.65,157.63,6.34397005]
[1750097716261,15.29774686,157.67,157.63,6.34397005]
[1750097718149,15.29774686,157.67,157.63,13.96636868]
[1750097721069,7.67534823,157.67,157.63,13.96636868]
[1750097721470,7.67534823,157.67,157.64,7.62239863]
[1750097723455,7.67534823,157.67,157.63,7.62239863]
[1750097723770,7.62239863,157.66,157.62,6.34437254]
[1750097723972,7.62239863,157.66,157.62,13.96677117]
[1750097724866,7.62239863,157.66,157.62,6.34437254]
[1750097725164,7.62239863,157.64,157.6,6.34509044]
[1750097726399,7.62239863,157.64,157.59,6.3455803]
[1750097726684,7.62239863,157.64,157.6,7.62239863]
[1750097727565,7.62239863,157.64,157.61,6.34477507]
[1750097730087,7.62239863,157.64,157.6,6.34502515]
[1750097732085,7.62239863,157.61,157.58,26.0]
[1750097732265,7.62239863,157.6,157.58,26.0]
[1750097732459,7.62239863,157.61,157.58,26.0]
[1750097733588,7.62239863,157.61,157.58,32.34580986]
[1750097733774,7.62239863,157.61,157.58,26.0]
[1750097734485,7.62239863,157.61,157.57,6.34627371]
[1750097734991,7.62239863,157.6,157.56,6.34666738]
[1750097735166,7.62239863,157.58,157.54,6.34759426]
[1750097735485,7.62239863,157.58,157.53,11.82785207]
[1750097735786,7.62239863,157.57,157.53,6.34785207]
[1750097735962,7.62239863,157.56,157.52,6.34825411]
[1750097736158,7.62239863,157.54,157.52,6.34825411]
[1750097736361,7.62239863,157.55,157.52,6.34825411]
[1750097737171,7.62239863,157.55,157.5,6.34920634]
[1750097737396,7.62239863,157.55,157.5,13.97160497]
[1750097739495,0.28432314,157.56,157.51,7.62239863]
[1750097739679,7.62239863,157.55,157.51,7.62239863]
[1750097740190,7.62239863,157.55,157.51,13.97083474]
[1750097740495,7.62239863,157.55,157.51,39.97083474]
[1750097740995,7.62239863,157.53,157.49,6.34944083]
[1750097741194,7.62239863,157.53,157.49,13.97183946]
[1750097741403,1.5956,157.56,157.52,7.62239863]
[1750097741613,44.1902,157.61,157.55,7.62239863]
[1750097741614,45.6937,157.61,157.55,7.62239863]
[1750097741910,7.62239863,157.59,157.55,7.62239863]
[1750097742094,7.62239863,157.59,157.54,7.62239863]
[1750097742593,7.62239863,157.59,157.55,6.34719136]
[1750097742796,7.62239863,157.59,157.55,13.96958999]
[1750097743604,0.28432314,157.6,157.55,13.96958999]
[1750097743815,7.90672177,157.6,157.55,13.96958999]
[1750097744719,14.25192205,157.6,157.55,13.96958999]
[1750097744893,7.90672177,157.6,157.55,13.96958999]
[1750097747195,7.90672177,157.6,157.56,7.62239863]
[1750097747513,8.04888334,157.63,157.59,7.62239863]
[1750097747722,7.7645602,157.63,157.59,7.62239863]
[1750097748012,0.14216157,157.62,157.59,7.62239863]
[1750097748218,0.14216157,157.62,157.58,7.62239863]
[1750097748609,0.14216157,157.62,157.55,22.21516977]
[1750097748793,7.7645602,157.62,157.55,22.21516977]
[1750097749118,7.62239863,157.58,157.53,26.0]
[1750097749323,7.62239863,157.58,157.53,33.62239863]
[1750097750599,7.62239863,157.58,157.53,39.97024694]
[1750097751422,7.62239863,157.57,157.53,6.34784831]
[1750097752822,7.62239863,157.56,157.51,6.34880325]
[1750097753022,7.62239863,157.56,157.51,13.97120188]
[1750097753329,7.62239863,157.56,157.52,7.62239863]
[1750097754307,7.7645602,157.58,157.53,7.62239863]
[1750097754513,0.28432314,157.57,157.53,7.62239863]
[1750097754924,0.28432314,157.57,157.53,13.9702333]
[1750097755229,7.90672177,157.57,157.53,13.9702333]
[1750097755424,0.28432314,157.57,157.53,13.9702333]
[1750097755608,7.90672177,157.57,157.53,13.9702333]
[1750097756025,0.28432314,157.57,157.53,13.9702333]
[1750097756216,7.90672177,157.57,157.53,13.9702333]
[1750097756529,1.532,157.59,157.54,7.62239863]
[1750097756711,4.95389631,157.63,157.57,7.62239863]
[1750097756916,4.95389631,157.63,157.56,26.0]
[1750097757120,18.92034079,157.63,157.58,7.62239863]
[1750097757510,7.62239863,157.62,157.58,7.62239863]
[1750097757707,0.28432314,157.62,157.59,7.62239863]
[1750097758411,0.14216157,157.62,157.6,7.62239863]
[1750097758723,0.14216157,157.62,157.55,27.5131]
[1750097758724,0.28432314,157.62,157.61,7.62239863]
[1750097758928,3.30919631,157.63,157.61,7.62239863]
[1750097759107,3.30919631,157.63,157.62,7.62239863]
[1750097760009,3.30919631,157.63,157.61,7.62239863]
[1750097760224,3.30919631,157.63,157.62,7.62239863]
[1750097760507,12.40243439,157.67,157.62,7.62239863]
[1750097760711,12.40243439,157.67,157.66,7.62239863]
[1750097760712,7.67534823,157.67,157.66,7.62239863]
[1750097761436,7.67534823,157.67,157.66,13.96516153]
[1750097762132,7.67534823,157.67,157.66,7.62239863]
[1750097763944,7.67534823,157.67,157.65,6.34309386]
[1750097764242,7.67534823,157.67,157.66,7.62239863]
[1750097765425,7.67534823,157.67,157.66,13.96516153]
[1750097765948,12.9846988,157.68,157.66,13.96516153]
[1750097766130,12.9846988,157.68,157.67,7.62239863]
[1750097767741,12.9846988,157.68,157.67,13.96475925]
[1750097769144,12.9846988,157.68,157.67,7.62239863]
[1750097773256,12.9846988,157.68,157.67,13.96475925]
[1750097773629,12.9846988,157.68,157.67,7.62239863]
[1750097776038,12.9846988,157.68,157.66,7.62239863]
[1750097776238,12.9846988,157.68,157.67,7.62239863]
[1750097777636,12.9846988,157.68,157.63,82.4]
[1750097777851,12.9846988,157.68,157.64,7.62239863]
[1750097778956,12.9846988,157.68,157.65,7.62239863]
[1750097779534,12.9846988,157.68,157.67,7.62239863]
[1750097779942,12.9846988,157.68,157.64,6.34338455]
[1750097779943,12.9846988,157.68,157.66,7.62239863]
[1750097780834,12.9846988,157.68,157.67,7.62239863]
[1750097783655,12.9846988,157.68,157.67,13.96475925]
[1750097784654,12.9846988,157.68,157.67,23.12615788]
[1750097786044,3.30711683,157.75,157.7,26.0]
[1750097786238,3.30711683,157.75,157.73,7.62239863]
[1750097786461,3.30711683,157.75,157.72,7.62239863]
[1750097787669,3.30711683,157.75,157.74,7.62239863]
[1750097788034,6.62243126,157.78,157.74,7.62239863]
[1750097788435,6.62243126,157.78,157.75,7.62239863]
[1750097790356,6.62243126,157.78,157.74,7.62239863]
[1750097791242,14.24482989,157.78,157.74,7.62239863]
[1750097791442,58.16606912,157.78,157.73,7.62239863]
[1750097795371,0.28432314,157.77,157.71,6.3406427]
[1750097795552,7.62239863,157.76,157.72,7.62239863]
[1750097795862,7.62239863,157.76,157.7,108.4]
[1750097795863,7.62239863,157.74,157.7,82.4]
[1750097796034,7.62239863,157.74,157.69,7.62239863]
[1750097796234,7.62239863,157.74,157.7,7.62239863]
[1750097796884,0.28432314,157.73,157.69,7.62239863]
[1750097797165,15.3361171,157.72,157.68,26.0]
[1750097797352,21.67670485,157.72,157.68,26.0]
[1750097797738,14.05430622,157.72,157.68,33.62239863]
[1750097798863,21.67670485,157.72,157.66,6.34262126]
[1750097799054,7.90672177,157.71,157.66,6.34262126]
[1750097799256,7.90672177,157.71,157.67,7.62239863]
[1750097799492,14.24770654,157.71,157.67,7.62239863]
[1750097802440,6.62530791,157.71,157.67,7.62239863]
[1750097802954,14.05424207,157.72,157.68,7.62239863]
[1750097803157,21.6766407,157.72,157.68,7.62239863]
[1750097803674,21.6766407,157.72,157.71,7.62239863]
[1750097803675,7.71371847,157.72,157.71,7.62239863]
[1750097808281,10.20947575,157.76,157.68,7.62239863]
[1750097808454,5.48,157.76,157.74,7.62239863]
[1750097808651,14.65885783,157.77,157.74,7.62239863]
[1750097809373,22.13909489,157.77,157.73,7.62239863]
[1750097813074,14.51669626,157.77,157.73,7.62239863]
[1750097813256,3.44872299,157.77,157.73,13.96233022]
[1750097814878,3.30656142,157.77,157.74,7.62239863]
[1750097815065,43.92123923,157.78,157.75,7.62239863]
[1750097816478,7.90672177,157.77,157.7,15.85285654]
[1750097816670,12.63710819,157.77,157.72,7.62239863]
[1750097816863,18.97566786,157.77,157.72,7.62239863]
[1750097817069,5.01470956,157.77,157.73,7.62239863]
[1750097817263,6.62266814,157.77,157.74,7.62239863]
[1750097817483,0.28432314,157.77,157.74,7.62239863]
[1750097818897,6.62267774,157.77,157.7,22.19401063]
[1750097819076,6.62267774,157.77,157.73,7.62239863]
[1750097819375,18.97579335,157.77,157.73,7.62239863]
[1750097822390,7.62239863,157.76,157.69,6.34155621]
[1750097822562,7.62239863,157.76,157.72,7.62239863]
[1750097823262,6.62357449,157.75,157.71,7.62239863]
[1750097823478,0.28432314,157.76,157.72,7.62239863]
[1750097824466,6.62331359,157.76,157.72,7.62239863]
[1750097824669,11.35403057,157.76,157.72,7.62239863]
[1750097825058,6.62331359,157.76,157.72,7.62239863]
[1750097825362,0.28432314,157.76,157.73,7.62239863]
[1750097825563,6.62312822,157.76,157.72,7.62239863]
[1750097826069,0.28432314,157.76,157.72,7.62239863]
[1750097826273,0.28432314,157.76,157.73,7.62239863]
[1750097826671,4.73071698,157.77,157.74,7.62239863]
[1750097826969,43.92123923,157.78,157.76,7.62239863]
[1750097827158,43.92123923,157.78,157.77,7.62239863]
[1750097828673,43.92123923,157.78,157.77,13.96073925]
[1750097833370,7.71465339,157.8,157.77,29.8065908]
[1750097833683,7.71465339,157.8,157.79,7.62239863]
[1750097834188,7.71465339,157.8,157.77,6.33834062]
[1750097834385,7.71465339,157.8,157.77,13.96073925]
[1750097834768,7.71465339,157.8,157.78,7.62239863]
[1750097835168,7.71465339,157.8,157.76,6.33859726]
[1750097835387,7.71465339,157.8,157.76,13.96099589]
[1750097835593,7.71465339,157.8,157.77,7.62239863]
[1750097836264,7.71465339,157.8,157.77,13.96072041]
[1750097837973,7.71465339,157.8,157.77,7.62239863]
[1750097838197,7.71465339,157.8,157.72,24.91494886]
[1750097838198,0.28432314,157.77,157.7,1.5183]
[1750097838491,0.28432314,157.77,157.73,7.62239863]
[1750097838492,7.90672177,157.77,157.73,7.62239863]
[1750097838700,0.28432314,157.77,157.73,7.62239863]
[1750097839081,0.28432314,157.78,157.74,7.62239863]
[1750097839279,6.62226859,157.78,157.74,7.62239863]
[1750097839594,14.24466722,157.78,157.73,7.62239863]
[1750097840295,7.62239863,157.76,157.72,7.62239863]
[1750097840795,6.62226859,157.78,157.71,6.34075201]
[1750097840986,7.62239863,157.76,157.72,7.62239863]
[1750097841192,6.62226859,157.78,157.72,13.96249282]
[1750097841193,7.62239863,157.77,157.72,13.96249282]
[1750097841390,7.62239863,157.77,157.73,7.62239863]
[1750097842804,13.9608871,157.77,157.73,7.62239863]
[1750097844513,13.9608871,157.77,157.72,7.62239863]
[1750097844998,13.9608871,157.77,157.7,7.62239863]
[1750097844999,7.62239863,157.75,157.7,7.62239863]
[1750097845993,13.96180138,157.75,157.7,7.62239863]
[1750097846394,13.96180138,157.75,157.68,32.34187701]
[1750097846395,0.28432314,157.73,157.69,7.62239863]
[1750097846781,7.90672177,157.73,157.68,33.62239863]
[1750097848185,14.24686825,157.73,157.68,33.62239863]
[1750097849792,14.24686825,157.73,157.68,39.96433445]
[1750097851684,14.24686825,157.73,157.68,33.62239863]
[1750097851877,14.24686825,157.73,157.68,7.62239863]
[1750097852108,7.62239863,157.71,157.66,13.96478169]
[1750097852615,6.62446962,157.73,157.67,7.62239863]
[1750097852616,7.62239863,157.72,157.67,7.62239863]
[1750097853010,13.96292505,157.72,157.67,13.96474749]
[1750097853386,13.99508861,157.74,157.7,7.62239863]
[1750097853904,13.99508861,157.74,157.69,7.62239863]
[1750097854216,7.62239863,157.72,157.67,13.96474749]
[1750097855288,13.96292229,157.72,157.67,13.96474749]
[1750097855483,13.96292229,157.72,157.68,7.62239863]
[1750097856113,12.9967353,157.74,157.69,7.62239863]
[1750097856321,3.30771857,157.75,157.72,7.62239863]
[1750097856913,3.30771857,157.75,157.73,7.62239863]
[1750097857215,9.27649863,157.78,157.73,7.62239863]
[1750097857216,15.61466519,157.78,157.73,7.62239863]
[1750097857515,15.61466519,157.78,157.73,13.9622985]
[1750097858297,7.64124727,157.78,157.75,7.62239863]
[1750097860216,15.12387595,157.79,157.75,7.62239863]
[1750097862424,3.30617595,157.79,157.77,7.62239863]
[1750097863319,3.30617595,157.79,157.71,22.19221817]
[1750097863624,3.30617595,157.79,157.76,7.62239863]
[1750097864600,3.30617595,157.79,157.77,7.62239863]
[1750097865408,3.30617595,157.79,157.71,22.19221817]
[1750097865610,3.30617595,157.79,157.77,7.62239863]
[1750097866328,3.30617595,157.79,157.71,22.19221817]
[1750097866528,11.52313521,157.81,157.78,7.62239863]
[1750097867546,17.85986969,157.81,157.78,7.62239863]
[1750097868126,17.85986969,157.81,157.76,6.33863908]
[1750097868329,7.90672177,157.8,157.75,7.62239863]
[1750097868644,0.28432314,157.8,157.76,7.62239863]
[1750097870428,6.62158848,157.8,157.76,7.62239863]
[1750097871939,11.38097364,157.81,157.76,7.62239863]
[1750097872834,17.7177187,157.81,157.75,6.4756]
[1750097873132,17.7177187,157.81,157.73,49.76491505]
[1750097873133,11.38097364,157.81,157.73,49.76491505]
[1750097873333,11.38097364,157.81,157.78,7.62239863]
[1750097876762,11.38097364,157.81,157.74,6.33954608]
[1750097876967,25.3402291,157.81,157.77,7.62239863]
[1750097877372,25.3402291,157.81,157.76,7.62239863]
[1750097878578,7.62239863,157.77,157.7,6.34115409]
[1750097878752,7.62239863,157.77,157.7,32.34115409]
[1750097879076,7.62239863,157.77,157.72,7.62239863]
[1750097879255,7.62239863,157.77,157.7,32.34115409]
[1750097879454,7.62239863,157.77,157.72,7.62239863]
[1750097879656,7.62239863,157.77,157.72,13.96256688]
[1750097880046,7.90672177,157.76,157.72,7.62239863]
[1750097880250,0.28432314,157.76,157.72,7.62239863]
[1750097882392,6.6230672,157.76,157.72,7.62239863]
[1750097883378,6.6230672,157.76,157.71,6.34059247]
[1750097883578,6.6230672,157.76,157.72,7.62239863]
[1750097884577,7.62239863,157.73,157.68,6.34181699]
[1750097884769,7.62239863,157.72,157.68,7.62239863]
[1750097885087,7.62239863,157.71,157.67,7.62239863]
[1750097885473,7.62239863,157.71,157.67,13.96461606]
[1750097885680,7.62239863,157.72,157.68,7.62239863]
[1750097888277,7.62239863,157.72,157.68,13.96434274]
[1750097889411,13.96251208,157.73,157.68,13.96434274]
[1750097889594,7.62239863,157.72,157.66,26.0]
[1750097889803,7.62239863,157.72,157.68,7.62239863]
[1750097890920,7.90672177,157.71,157.67,7.62239863]
[1750097892206,14.2474814,157.71,157.66,32.34264358]
[1750097892520,14.2474814,157.71,157.67,7.62239863]
[1750097892817,7.62239863,157.7,157.64,82.4]
[1750097892989,7.62239863,157.69,157.65,7.62239863]
[1750097893319,7.62239863,157.7,157.66,7.62239863]
[1750097893607,7.62239863,157.7,157.63,22.20389519]
[1750097893815,6.62508277,157.71,157.66,7.62239863]
[1750097894014,7.62239863,157.7,157.66,7.62239863]
[1750097894594,14.2474814,157.71,157.66,7.62239863]
[1750097897342,14.2474814,157.71,157.66,13.96513691]
[1750097898149,14.2474814,157.71,157.67,7.62239863]
[1750097898305,7.90672177,157.71,157.67,13.96471874]
[1750097898640,0.28432314,157.71,157.67,13.96471874]
[1750097899539,14.24752012,157.71,157.66,13.96499703]
[1750097899837,6.62512149,157.71,157.66,13.96499703]
[1750097900005,14.24752012,157.71,157.66,13.96499703]
[1750097900407,14.24752012,157.71,157.67,7.62239863]
[1750097902717,14.24752012,157.71,157.67,13.96472446]
[1750097903436,14.24752012,157.71,157.66,7.62239863]
[1750097903636,7.62239863,157.7,157.66,7.62239863]
[1750097903825,7.62239863,157.69,157.65,7.62239863]
[1750097904524,13.96447242,157.68,157.63,6.34385578]
[1750097904954,13.96447242,157.68,157.64,7.62239863]
[1750097906630,13.96447242,157.68,157.63,13.96625441]
[1750097908566,13.96447242,157.68,157.63,6.34385578]
[1750097908753,13.96447242,157.68,157.63,13.96625441]
[1750097908941,13.96447242,157.68,157.63,7.62239863]
[1750097909143,13.96447242,157.68,157.62,13.9666108]
[1750097909144,7.90672177,157.67,157.62,13.9666108]
[1750097909342,7.90672177,157.67,157.62,7.62239863]
[1750097909739,7.62239863,157.66,157.61,7.62239863]
[1750097911181,7.90672177,157.65,157.59,6.3455803]
[1750097911671,0.28432314,157.65,157.61,7.62239863]
[1750097912570,7.95415921,157.67,157.63,7.62239863]
[1750097912875,0.28432314,157.66,157.62,7.62239863]
[1750097913246,7.90672177,157.66,157.62,7.62239863]
[1750097913558,14.24971774,157.66,157.59,15.86385378]
[1750097913874,14.24971774,157.66,157.61,7.62239863]
[1750097915556,14.24971774,157.66,157.61,13.9671699]
[1750097916475,14.24971774,157.66,157.62,7.62239863]
[1750097917380,7.90672177,157.64,157.6,7.62239863]
[1750097917552,0.28432314,157.64,157.6,7.62239863]
[1750097918262,7.90672177,157.64,157.6,7.62239863]
[1750097918665,7.90672177,157.64,157.6,13.96753542]
[1750097921176,7.90672177,157.64,157.6,7.62239863]
[1750097921585,0.28432314,157.64,157.6,13.96755893]
[1750097922261,14.25036386,157.64,157.6,7.62239863]
[1750097923072,14.25036386,157.64,157.6,5.63336618]
[1750097924391,52.35036386,157.64,157.6,5.63336618]
[1750097924598,14.25036386,157.64,157.6,5.63336618]
[1750097926068,7.62239863,157.63,157.59,7.62239863]
[1750097926269,7.62239863,157.63,157.56,7.62239863]
[1750097926270,0.28432314,157.61,157.56,7.62239863]
[1750097926478,0.28432314,157.61,157.53,89.5501]
[1750097926479,7.90672177,157.61,157.57,7.62239863]
[1750097926683,0.28432314,157.64,157.6,7.62239863]
[1750097926888,0.28432314,157.64,157.61,7.62239863]
[1750097928484,0.28432314,157.64,157.6,6.34515311]
[1750097928691,0.28432314,157.64,157.62,7.62239863]
[1750097930594,7.74859414,157.65,157.62,7.62239863]
[1750097930797,7.74859414,157.65,157.64,7.62239863]
[1750097931307,8.03620634,157.71,157.64,7.62239863]
[1750097931469,3.30758331,157.71,157.69,7.62239863]
[1750097933079,3.59190645,157.71,157.7,7.62239863]
[1750097933895,3.59190645,157.71,157.69,7.62239863]
[1750097935479,3.30758331,157.71,157.69,7.62239863]
[1750097937905,3.30758331,157.71,157.68,7.62239863]
[1750097938106,0.28432314,157.7,157.68,7.62239863]
[1750097938284,0.28432314,157.7,157.67,7.62239863]
[1750097938474,0.28432314,157.7,157.64,6.34356762]
[1750097938675,26.6985322,157.7,157.62,6.0369]
[1750097938903,0.28432314,157.68,157.64,7.62239863]
[1750097940377,0.14216157,157.67,157.6,11.84510382]
[1750097940584,0.28432314,157.66,157.63,7.62239863]
[1750097941405,7.90672177,157.66,157.62,7.62239863]
[1750097941700,14.24985325,157.66,157.62,7.62239863]
[1750097942607,6.62745462,157.66,157.62,7.62239863]
[1750097942809,14.24985325,157.66,157.61,7.62239863]
[1750097942981,7.62239863,157.65,157.6,7.62239863]
[1750097943177,0.28432314,157.64,157.6,7.62239863]
[1750097943402,7.62239863,157.64,157.59,33.62239863]
[1750097943699,6.34397005,157.63,157.59,33.62239863]
[1750097943904,13.96636868,157.63,157.59,7.62239863]
[1750097944097,13.96636868,157.63,157.58,13.96822814]
[1750097944411,13.96636868,157.63,157.58,7.62239863]
[1750097944986,7.90672177,157.62,157.58,7.62239863]